fUSD/lending_fUSD_20250103
["ID","MTS","AMOUNT","RATE_DAILY","PERIOD"]
[347600699,1735941032175,-301.59581053,0.00010862,2]
[347600700,1735941032185,-25.15418947,0.00010862,2]
[347600701,1735941032194,-1000.0,0.00010867,2]
[347600702,1735941032203,-150.2,0.00010882,2]
[347600703,1735941032212,-250.0,0.00010893,2]
[347600704,1735941032222,-150.0,0.00010932,2]
[347600705,1735941032231,-431.88,0.00010971,2]
[347600706,1735941032240,-400.0,0.00010986,2]
[347600707,1735941032250,-550.0,0.00011,2]
[347600708,1735941032259,-500.0,0.00011,4]
[347600709,1735941032272,-150.0,0.00011047,2]
[347600710,1735941032281,-150.0,0.00011047,2]
[347600711,1735941032290,-1100.0,0.000111,4]
[347600712,1735941032299,-418.86,0.00011173,2]
[347600713,1735941032309,-1600.0,0.000112,4]
[347600714,1735941032318,-300.0,0.00011213,2]
[347600715,1735941032327,-2200.0,0.000113,4]
[347600716,1735941032336,-2700.0,0.000114,4]
[347600717,1735941032350,-500.0,0.000115,4]
[347600718,1735941032362,-368.77168766,0.000116,4]
[347600719,1735941032406,-131.22831234,0.000116,4]
[347600720,1735941032416,-873.58,0.00011678,2]
[347600721,1735941032426,-150.0,0.00011678,2]
[347600722,1735941032435,-826.81,0.00011678,2]
[347600723,1735941032444,-324.64,0.00011678,2]
[347600724,1735941032455,-150.0,0.00011678,2]
[347600725,1735941032464,-150.0,0.00011678,2]
[347600726,1735941032475,-288.24,0.0001168,2]
[347600727,1735941032487,-500.0,0.000117,4]
[347600728,1735941032496,-493.06,0.00011769,2]
[347600729,1735941032507,-500.0,0.000118,4]
[347600730,1735941032516,-500.0,0.00011892,2]
[347600731,1735941032527,-710.1309297,0.00011892,2]
[347600733,1735941032538,-289.8690703,0.00011892,2]
[347600735,1735941032547,-500.0,0.00011898,2]
[347600737,1735941032556,-500.0,0.00011898,2]
[347600739,1735941032565,-500.0,0.00011898,2]
[347600741,1735941032574,-500.0,0.00011898,2]
[347600743,1735941032583,-500.0,0.00011898,2]
[347600745,1735941032594,-326.402619,0.00011898,2]
[347600749,1735941032625,-173.597381,0.00011898,2]
[347600751,1735941032634,-500.0,0.00011898,2]
[347600753,1735941032644,-500.0,0.00011898,2]
[347600755,1735941032653,-593.06,0.00011898,2]
[347600757,1735941032662,-500.0,0.00011898,2]
[347600759,1735941032671,-261.20251838,0.00011898,2]
[347600783,1735941033001,-238.79748162,0.00011898,2]
[347600784,1735941033011,-571.29,0.00011898,2]
[347600785,1735941033020,-500.0,0.00011898,2]
[347600786,1735941033030,-506.35,0.00011898,2]
[347600787,1735941033043,-500.0,0.00011898,2]
[347600788,1735941033057,-500.0,0.00011898,2]
[347600789,1735941033073,-504.67,0.00011898,2]
[347600790,1735941033087,-500.0,0.00011898,2]
[347600791,1735941033098,-500.0,0.00011898,2]
[347600792,1735941033110,-500.0,0.00011898,2]
[347600793,1735941033124,-500.0,0.00011898,2]
[347600794,1735941033138,-500.0,0.00011898,2]
[347600795,1735941033151,-500.0,0.00011898,2]
[347600796,1735941033164,-527.09,0.00011898,2]
[347600797,1735941033176,-500.0,0.00011898,2]
[347600798,1735941033189,-500.0,0.00011898,2]
[347600799,1735941033203,-500.0,0.00011898,2]
[347600800,1735941033215,-500.0,0.00011898,2]
[347600801,1735941033226,-500.0,0.00011898,2]
[347600802,1735941033239,-500.0,0.00011898,2]
[347600803,1735941033252,-460.09,0.00011898,2]
[347600804,1735941033266,-500.0,0.00011898,2]
[347600805,1735941033279,-500.0,0.00011898,2]
[347600806,1735941033292,-500.0,0.00011898,2]
[347600807,1735941033307,-500.0,0.00011898,2]
[347600808,1735941033321,-500.0,0.00011898,2]
[347600809,1735941033335,-500.0,0.00011898,2]
[347600810,1735941033347,-500.0,0.00011898,2]
[347600811,1735941033361,-500.0,0.00011898,2]
[347600812,1735941033374,-599.09,0.00011898,2]
[347600813,1735941033386,-500.0,0.00011898,2]
[347600814,1735941033398,-641.05,0.00011898,2]
[347600815,1735941033410,-468.4,0.00011898,2]
[347600816,1735941033423,-500.0,0.00011898,2]
[347600817,1735941033436,-500.0,0.00011898,2]
[347600818,1735941033449,-500.0,0.00011898,2]
[347600819,1735941033461,-500.0,0.00011898,2]
[347600820,1735941033474,-500.0,0.00011898,2]
[347600821,1735941033485,-500.0,0.00011898,2]
[347600822,1735941033495,-500.0,0.00011898,2]
[347600823,1735941033506,-500.0,0.00011898,2]
[347600824,1735941033518,-500.0,0.00011898,2]
[347600825,1735941033532,-288.23614738,0.00011898,2]
[347600826,1735941033548,-211.76385262,0.00011898,2]
[347600827,1735941033558,-500.0,0.00011898,2]
[347600828,1735941033568,-500.0,0.00011898,2]
[347600829,1735941033579,-500.0,0.00011898,2]
[347600830,1735941033591,-500.0,0.00011898,2]
[347600831,1735941033604,-500.0,0.00011898,2]
[347600832,1735941033617,-527.52,0.00011898,2]
[347600833,1735941033627,-500.0,0.00011898,2]
[347600834,1735941033638,-500.0,0.00011898,2]
[347600835,1735941033649,-500.0,0.00011898,2]
[347600836,1735941033663,-500.0,0.00011898,2]
[347600837,1735941033674,-500.0,0.00011898,2]
[347600838,1735941033685,-549.85,0.00011898,2]
[347600839,1735941033696,-500.0,0.00011898,2]
[347600840,1735941033708,-500.0,0.00011898,2]
[347600841,1735941033720,-500.0,0.00011898,2]
[347600842,1735941033732,-225.99,0.00011898,2]
[347600843,1735941033743,-500.0,0.00011898,2]
[347600844,1735941033756,-160.1,0.00011898,2]
[347600845,1735941033767,-500.0,0.00011898,2]
[347600846,1735941033779,-1718.00888039,0.00011898,2]
[347600847,1735941033814,-3281.99111961,0.00011898,2]
[347600848,1735941033825,-500.0,0.00011898,2]
[347600849,1735941033837,-160.18071812,0.00011898,2]
[347600850,1735941033851,-339.81928188,0.00011898,2]
[347600851,1735941033863,-500.0,0.00011898,2]
[347600852,1735941033874,-500.0,0.00011898,2]
[347600853,1735941033886,-500.0,0.00011898,2]
[347600854,1735941033898,-500.0,0.00011898,2]
[347600855,1735941033909,-500.0,0.00011898,2]
[347600856,1735941033921,-500.0,0.00011898,2]
[347600857,1735941033933,-500.0,0.00011898,2]
[347600858,1735941033944,-500.0,0.00011898,2]
[347600859,1735941033956,-500.0,0.00011898,2]
[347600860,1735941033968,-500.0,0.00011898,2]
[347600861,1735941033980,-916.61,0.00011898,2]
[347600862,1735941033991,-121.48738863,0.00011898,2]
[347600863,1735941034006,-378.51261137,0.00011898,2]
[347600864,1735941034018,-500.0,0.00011898,2]
[347600865,1735941034029,-632.8,0.00011898,2]
[347600866,1735941034040,-500.0,0.00011898,2]
[347600867,1735941034052,-548.72,0.00011898,2]
[347600868,1735941034063,-500.0,0.00011898,2]
[347600869,1735941034075,-500.0,0.00011898,2]
[347600870,1735941034086,-609.51,0.00011898,2]
[347600871,1735941034098,-802.04,0.00011898,2]
[347600872,1735941034109,-500.0,0.00011898,2]
[347600873,1735941034121,-500.0,0.00011898,2]
[347600874,1735941034132,-500.0,0.00011898,2]
[347600875,1735941034144,-500.0,0.00011898,2]
[347600876,1735941034155,-500.0,0.00011898,2]
[347600877,1735941034167,-500.0,0.00011898,2]
[347600878,1735941034178,-500.0,0.00011898,2]
[347600879,1735941034189,-500.0,0.00011898,2]
[347600880,1735941034201,-500.0,0.00011898,2]
[347600881,1735941034213,-500.0,0.00011898,2]
[347600882,1735941034225,-500.0,0.00011898,2]
[347600883,1735941034237,-500.0,0.00011898,2]
[347600884,1735941034248,-438.31321321,0.00011898,2]
[347600885,1735941034295,-61.68678679,0.00011898,2]
[347600886,1735941034306,-500.0,0.00011898,2]
[347600887,1735941034318,-500.0,0.00011898,2]
[347600888,1735941034330,-500.0,0.00011898,2]
[347600889,1735941034342,-221.75950293,0.00011898,2]
[347600890,1735941034677,346.0,7.11e-05,2]
[347600894,1735941038319,-278.24049707,0.00011898,2]
[347600895,1735941038329,-500.0,0.00011898,2]
[347600896,1735941038340,-500.0,0.00011898,2]
[347600897,1735941038350,-500.0,0.00011898,2]
[347600898,1735941038360,-500.0,0.00011898,2]
[347600899,1735941038370,-500.0,0.00011898,2]
[347600900,1735941038380,-500.0,0.00011898,2]
[347600902,1735941038389,-604.04,0.00011898,2]
[347600904,1735941038398,-500.0,0.00011898,2]
[347600906,1735941038407,-500.0,0.00011898,2]
[347600908,1735941038416,-500.0,0.00011898,2]
[347600910,1735941038426,-578.19,0.00011898,2]
[347600911,1735941038435,-500.0,0.00011898,2]
[347600912,1735941038444,-500.0,0.00011898,2]
[347600913,1735941038453,-500.0,0.00011898,2]
[347600914,1735941038462,-29.89787795,0.00011898,2]
[347600915,1735941038474,-470.10212205,0.00011898,2]
[347600916,1735941038484,-524.8,0.00011898,2]
[347600918,1735941038493,-500.0,0.00011898,2]
[347600920,1735941038502,-500.0,0.00011898,2]
[347600922,1735941038511,-500.0,0.00011898,2]
[347600924,1735941038520,-500.0,0.00011898,2]
[347600925,1735941038529,-500.0,0.00011898,2]
[347600927,1735941038538,-500.0,0.00011898,2]
[347600928,1735941038547,-500.0,0.00011898,2]
[347600929,1735941038555,-500.0,0.00011898,2]
[347600930,1735941038564,-500.0,0.00011898,2]
[347600931,1735941038573,-500.0,0.00011898,2]
[347600932,1735941038582,-500.0,0.00011898,2]
[347600933,1735941038591,-517.19,0.00011898,2]
[347600934,1735941038600,-500.0,0.00011898,2]
[347600935,1735941038609,-500.0,0.00011898,2]
[347600936,1735941038618,-500.0,0.00011898,2]
[347600937,1735941038627,-500.0,0.00011898,2]
[347600938,1735941038636,-525.63,0.00011898,2]
[347600939,1735941038645,-500.0,0.00011898,2]
[347600940,1735941038654,-500.0,0.00011898,2]
[347600941,1735941038663,-500.0,0.00011898,2]
[347600942,1735941038671,-500.0,0.00011898,2]
[347600943,1735941038680,-500.0,0.00011898,2]
[347600944,1735941038689,-500.0,0.00011898,2]
[347600945,1735941038698,-500.0,0.00011898,2]
[347600946,1735941038707,-241.79,0.00011898,2]
[347600947,1735941038716,-500.0,0.00011898,2]
[347600948,1735941038725,-500.0,0.00011898,2]
[347600949,1735941038734,-410.74389447,0.00011898,2]
[347600950,1735941038743,-500.0,0.00011898,2]
[347600951,1735941038751,-500.0,0.00011898,2]
[347600952,1735941038760,-500.0,0.00011898,2]
[347600953,1735941038770,-500.0,0.00011898,2]
[347600954,1735941038780,-500.0,0.00011898,2]
[347600955,1735941038790,-500.0,0.00011898,2]
[347600956,1735941038801,-541.21,0.00011898,2]
[347600957,1735941038811,-500.0,0.00011898,2]
[347600958,1735941038822,-500.0,0.00011898,2]
[347600959,1735941038831,-430.93398348,0.00011898,2]
[347600960,1735941038843,-69.06601652,0.00011898,2]
[347600961,1735941038853,-500.0,0.00011898,2]
[347600962,1735941038862,-406.59345836,0.00011898,2]
[347600970,1735941040180,-95.34654164,0.00011898,2]
[347600971,1735941040196,-348.96104733,0.00011898,2]
[347600972,1735941040206,-304.31234649,0.00011898,2]
[347600973,1735941040240,-195.68765351,0.00011898,2]
[347600974,1735941040249,-500.0,0.00011898,2]
[347600975,1735941040258,-364.08083794,0.00011898,2]
[347600976,1735941040269,-500.0,0.00011898,2]
[347600977,1735941040278,-500.0,0.00011898,2]
[347600978,1735941040287,-500.0,0.00011898,2]
[347600979,1735941040296,-500.0,0.00011898,2]
[347600980,1735941040305,-500.0,0.00011898,2]
[347600981,1735941040314,-560.59,0.00011898,2]
[347600982,1735941040323,-500.0,0.00011898,2]
[347600983,1735941040333,-500.0,0.00011898,2]
[347600984,1735941040342,-500.0,0.00011898,2]
[347600985,1735941040351,-500.0,0.00011898,2]
[347600986,1735941040360,-500.0,0.00011898,2]
[347600987,1735941040369,-500.0,0.00011898,2]
[347600988,1735941040378,-99.54449772,0.00011898,2]
[347600989,1735941040390,-400.45550228,0.00011898,2]
[347600990,1735941040399,-500.0,0.00011898,2]
[347600991,1735941040409,-500.0,0.00011898,2]
[347600992,1735941040418,-534.23847172,0.00011898,2]
[347600993,1735941040444,-40.39152828,0.00011898,2]
[347600994,1735941040453,-500.0,0.00011898,2]
[347600995,1735941040463,-500.0,0.00011898,2]
[347600996,1735941040472,-500.0,0.00011898,2]
[347600997,1735941040481,-500.0,0.00011898,2]
[347600998,1735941040490,-500.0,0.00011898,2]
[347600999,1735941040499,-500.0,0.00011898,2]
[347601000,1735941040508,-500.0,0.00011898,2]
[347601001,1735941040518,-500.0,0.00011898,2]
[347601002,1735941040527,-15.04027178,0.00011898,2]
[347601003,1735941040538,-484.95972822,0.00011898,2]
[347601004,1735941040547,-500.0,0.00011898,2]
[347601005,1735941040556,-500.0,0.00011898,2]
[347601006,1735941040565,-243.65,0.00011898,2]
[347601007,1735941040574,-500.0,0.00011898,2]
[347601008,1735941040583,-500.0,0.00011898,2]
[347601009,1735941040592,-500.0,0.00011898,2]
[347601011,1735941040601,-315.86,0.00011898,2]
[347601013,1735941040610,-500.0,0.00011898,2]
[347601015,1735941040619,-500.0,0.00011898,2]
[347601017,1735941040629,-500.0,0.00011898,2]
[347601019,1735941040638,-541.75,0.00011898,2]
[347601021,1735941040647,-500.0,0.00011898,2]
[347601023,1735941040656,-500.0,0.00011898,2]
[347601025,1735941040665,-500.0,0.00011898,2]
[347601026,1735941040674,-500.0,0.00011898,2]
[347601028,1735941040683,-513.35,0.00011898,2]
[347601030,1735941040691,-604.48,0.00011898,2]
[347601032,1735941040701,-500.0,0.00011898,2]
[347601034,1735941040710,-500.0,0.00011898,2]
[347601036,1735941040719,-773.66,0.00011898,2]
[347601038,1735941040729,-500.0,0.00011898,2]
[347601039,1735941040739,-500.0,0.00011898,2]
[347601040,1735941040748,-500.0,0.00011898,2]
[347601041,1735941040757,-500.0,0.00011898,2]
[347601042,1735941040766,-500.0,0.00011898,2]
[347601043,1735941040775,-500.0,0.00011898,2]
[347601044,1735941040783,-500.0,0.00011898,2]
[347601045,1735941040792,-500.0,0.00011898,2]
[347601046,1735941040801,-545.84,0.00011898,2]
[347601047,1735941040810,-500.0,0.00011898,2]
[347601048,1735941040819,-581.79,0.00011898,2]
[347601049,1735941040827,-328.92463454,0.00011898,2]
[347601050,1735941040839,-512.05536546,0.00011898,2]
[347601051,1735941040848,-259.41,0.00011898,2]
[347601052,1735941040857,-500.0,0.00011898,2]
[347601053,1735941040866,-596.13,0.00011898,2]
[347601054,1735941040875,-500.0,0.00011898,2]
[347601055,1735941040884,-578.36,0.00011898,2]
[347601056,1735941040893,-500.0,0.00011898,2]
[347601057,1735941040902,-524.57,0.00011898,2]
[347601058,1735941040911,-500.0,0.00011898,2]
[347601060,1735941040922,-272.1,0.00011898,2]
[347601062,1735941040930,-500.0,0.00011898,2]
[347601064,1735941040939,-500.0,0.00011898,2]
[347601066,1735941040948,-339.14813929,0.00011898,2]
[347601068,1735941040957,-500.0,0.00011898,2]
[347601070,1735941040966,-566.9,0.00011898,2]
[347601072,1735941040975,-500.0,0.00011898,2]
[347601074,1735941040986,-500.0,0.00011898,2]
[347601076,1735941040995,-500.0,0.00011898,2]
[347601078,1735941041004,-500.0,0.00011898,2]
[347601079,1735941041014,-570.16,0.00011898,2]
[347601081,1735941041023,-500.0,0.00011898,2]
[347601083,1735941041034,-500.0,0.00011898,2]
[347601085,1735941041043,-500.0,0.00011898,2]
[347601087,1735941041052,-500.0,0.00011898,2]
[347601088,1735941041061,-500.0,0.00011898,2]
[347601089,1735941041070,-500.0,0.00011898,2]
[347601090,1735941041080,-500.0,0.00011898,2]
[347601091,1735941041089,-640.26,0.00011898,2]
[347601092,1735941041098,-500.0,0.00011898,2]
[347601093,1735941041107,-500.0,0.00011898,2]
[347601094,1735941041116,-500.0,0.00011898,2]
[347601095,1735941041125,-500.0,0.00011898,2]
[347601096,1735941041134,-500.0,0.00011898,2]
[347601097,1735941041144,-500.0,0.00011898,2]
[347601098,1735941041154,-500.0,0.00011898,2]
[347601099,1735941041163,-500.0,0.00011898,2]
[347601100,1735941041172,-214.56164646,0.00011898,2]
[347601101,1735941041182,-500.0,0.00011898,2]
[347601102,1735941041191,-500.0,0.00011898,2]
[347601103,1735941041200,-500.0,0.00011898,2]
[347601104,1735941041210,-500.0,0.00011898,2]
[347601105,1735941041219,-716.11,0.00011898,2]
[347601106,1735941041228,-515.41,0.00011898,2]
[347601107,1735941041239,-648.72,0.00011898,2]
[347601108,1735941041249,-281.719345,0.00011898,2]
[347601109,1735941041258,-500.0,0.00011898,2]
[347601110,1735941041269,-500.0,0.00011898,2]
[347601111,1735941041278,-500.0,0.00011898,2]
[347601112,1735941041288,-500.97,0.00011898,2]
[347601113,1735941041299,-500.0,0.00011898,2]
[347601114,1735941041311,-567.77,0.00011898,2]
[347601115,1735941041320,-500.0,0.00011898,2]
[347601116,1735941041331,-547.99,0.00011898,2]
[347601117,1735941041342,-413.70550379,0.00011898,2]
[347601118,1735941041409,-86.29449621,0.00011898,2]
[347601119,1735941041420,-537.03018582,0.00011898,2]
[347601120,1735941041432,-500.0,0.00011898,2]
[347601121,1735941041448,-305.18372185,0.00011898,2]
[347601122,1735941041462,-194.81627815,0.00011898,2]
[347601123,1735941041471,-471.18372185,0.00011898,2]
[347601124,1735941041487,-28.81627815,0.00011898,2]
[347601125,1735941041497,-500.0,0.00011898,2]
[347601126,1735941041507,-150.0,0.00011898,2]
[347601127,1735941041516,-500.0,0.00011898,2]
[347601128,1735941041526,-2498.33,0.00011898,2]
[347601129,1735941041536,-382.57847,0.00011898,2]
[347601130,1735941041546,-500.0,0.00011898,2]
[347601131,1735941041557,-500.0,0.00011898,2]
[347601132,1735941041566,-500.0,0.00011898,2]
[347601133,1735941041575,-500.0,0.00011898,2]
[347601134,1735941041584,-500.0,0.00011898,2]
[347601135,1735941041594,-500.0,0.00011898,2]
[347601136,1735941041604,-500.0,0.00011898,2]
[347601137,1735941041614,-500.0,0.00011898,2]
[347601138,1735941041624,-500.0,0.00011898,2]
[347601139,1735941041634,-500.0,0.00011898,2]
[347601140,1735941041644,-931.3,0.00011898,2]
[347601141,1735941041656,-500.0,0.00011898,2]
[347601142,1735941041666,-500.0,0.00011898,2]
[347601143,1735941041675,-500.0,0.00011898,2]
[347601144,1735941041685,-500.0,0.00011898,2]
[347601145,1735941041697,-500.0,0.00011898,2]
[347601146,1735941041707,-953.44,0.00011899,2]
[347601147,1735941041716,-2307.09,0.00011899,2]
[347601148,1735941041726,-1080.06,0.00011899,2]
[347601149,1735941041737,-2970.49,0.00011899,2]
[347601150,1735941041747,-1249.39,0.00011899,2]
[347601151,1735941041758,-1450.49,0.00011899,2]
[347601152,1735941041768,-865.79,0.00011899,2]
[347601153,1735941041776,-586.22,0.00011899,2]
[347601154,1735941041786,-750.03,0.00011899,2]
[347601155,1735941041798,-1915.33,0.00011899,2]
[347601156,1735941041808,-869.37856037,0.00011899,2]
[347601157,1735941041821,-363.49143963,0.00011899,2]
[347601158,1735941041830,-544.47,0.00011899,2]
[347601159,1735941041840,-158.10426035,0.00011899,2]
[347601178,1735941043311,-341.89573965,0.00011899,2]
[347601179,1735941043321,-500.0,0.00011899,2]
[347601180,1735941043330,-500.0,0.00011899,2]
[347601181,1735941043340,-500.0,0.00011899,2]
[347601182,1735941043349,-500.0,0.00011899,2]
[347601183,1735941043359,-500.0,0.00011899,2]
[347601184,1735941043368,-951.18426035,0.00011899,2]
[347601185,1735941043380,-347.59,0.00011899,2]
[347601186,1735941043391,-512.6900035,0.00011899,2]
[347601187,1735941043402,-228.77573615,0.00011899,2]
[347601188,1735941043412,-500.0,0.00011899,2]
[347601189,1735941043421,-4070.15462196,0.00011899,2]
[347601190,1735941043434,-512.00786555,0.00011899,2]
[347601191,1735941043446,-461.96322663,0.00011899,2]
[347601192,1735941043457,-1376.14428586,0.00011899,2]
[347601193,1735941043468,-976.37,0.00011899,2]
[347601194,1735941043477,-947.44,0.00011899,2]
[347601195,1735941043487,-927.0,0.000119,4]
[347601196,1735941043496,-675.64,0.00011997,2]
[347601197,1735941043506,-298.51587904,0.00011997,2]
[347601199,1735941043547,-592.0673473,0.00011997,2]
[347601202,1735941043562,-633.34677366,0.00011997,2]
[347601204,1735941043571,-1202.65,0.00011997,2]
[347601206,1735941043581,-2483.388,0.00011998,2]
[347601207,1735941043590,-177.178,0.00011998,2]
[347601209,1735941043601,-949.35,0.00012064,2]
[347601210,1735941043610,-988.9,0.00012064,2]
[347601211,1735941043620,-500.0,0.00012064,2]
[347601212,1735941043630,-903.51,0.00012064,2]
[347601213,1735941043639,-500.0,0.00012064,2]
[347601214,1735941043649,-913.71,0.00012064,2]
[347601215,1735941043658,-500.0,0.00012064,2]
[347601216,1735941043668,-500.0,0.00012064,2]
[347601217,1735941043678,-624.29,0.00012064,2]
[347601218,1735941043687,-313.95269381,0.00012064,2]
[347601219,1735941043705,-186.04730619,0.00012064,2]
[347601220,1735941043714,-500.0,0.00012064,2]
[347601221,1735941043724,-476.97084881,0.00012064,2]
[347601222,1735941043767,-23.02915119,0.00012064,2]
[347601223,1735941043777,-500.0,0.00012064,2]
[347601224,1735941043786,-312.02076508,0.00012064,2]
[347601225,1735941043797,-187.97923492,0.00012064,2]
[347601226,1735941043807,-500.0,0.00012064,2]
[347601227,1735941043816,-500.0,0.00012064,2]
[347601228,1735941043826,-620.67076508,0.00012065,2]
[347601230,1735941043937,-282.22400001,0.00011892,2]
[347601231,1735941043949,-217.77599999,0.00011892,2]
[347601232,1735941043958,-93.96612921,0.00012065,2]
[347601233,1735941043971,-269.38022628,0.00012065,2]
[347601234,1735941043982,-362.05,0.00012065,2]
[347601247,1735941046204,-2848.29,0.00012064,2]
[347601248,1735941046214,-265.89493067,0.00012065,2]
[347601249,1735941046225,-234.10506933,0.00012065,2]
[347601250,1735941046235,-500.0,0.00012065,2]
[347601251,1735941046244,-502.05,0.00012065,2]
[347601252,1735941046253,-500.0,0.00012065,2]
[347601253,1735941046265,-959.56,0.00012065,2]
[347601254,1735941046276,-2138.58,0.00012065,2]
[347601255,1735941046287,-500.0,0.00012065,2]
[347601256,1735941046296,-500.0,0.00012065,2]
[347601257,1735941046306,-661.57,0.00012065,2]
[347601258,1735941046315,-585.35,0.00012065,2]
[347601259,1735941046326,-500.0,0.00012065,2]
[347601260,1735941046336,-5000.0,0.00012071,2]
[347601261,1735941046345,-206.20860154,0.00012071,2]
[347601262,1735941046355,-1766.54,0.00012073,2]
[347601263,1735941046364,-800.0,0.00012088,2]
[347601264,1735941046374,-605.93186462,0.000121,5]
[347601265,1735941046383,-500.0,0.00012166,2]
[347601266,1735941046393,-1000.0,0.00012166,2]
[347601267,1735941046402,-500.0,0.00012166,2]
[347601268,1735941046411,-500.0,0.00012171,2]
[347601269,1735941046421,-500.0,0.00012171,2]
[347601270,1735941046430,-500.0,0.00012171,2]
[347601271,1735941046439,-500.0,0.00012171,2]
[347601272,1735941046448,-500.0,0.00012171,2]
[347601273,1735941046457,-500.0,0.00012171,2]
[347601274,1735941046466,-500.0,0.00012171,2]
[347601275,1735941046475,-500.0,0.00012171,2]
[347601276,1735941046484,-639.39,0.00012171,2]
[347601278,1735941046493,-500.0,0.00012171,2]
[347601280,1735941046503,-500.0,0.00012171,2]
[347601282,1735941046512,-500.0,0.00012171,2]
[347601284,1735941046523,-500.0,0.00012171,2]
[347601285,1735941046532,-500.0,0.00012171,2]
[347601286,1735941046542,-500.0,0.00012171,2]
[347601288,1735941046551,-500.0,0.00012171,2]
[347601290,1735941046560,-500.0,0.00012171,2]
[347601292,1735941046569,-500.0,0.00012171,2]
[347601294,1735941046578,-500.0,0.00012171,2]
[347601296,1735941046588,-500.0,0.00012171,2]
[347601298,1735941046597,-500.0,0.00012171,2]
[347601300,1735941046606,-500.0,0.00012171,2]
[347601302,1735941046615,-647.41,0.00012171,2]
[347601304,1735941046624,-500.0,0.00012171,2]
[347601306,1735941046633,-500.0,0.00012171,2]
[347601308,1735941046643,-500.0,0.00012171,2]
[347601310,1735941046652,-500.0,0.00012171,2]
[347601311,1735941046662,-500.0,0.00012171,2]
[347601312,1735941046671,-500.0,0.00012171,2]
[347601313,1735941046679,-500.0,0.00012171,2]
[347601316,1735941046689,-500.0,0.00012171,2]
[347601318,1735941046699,-500.0,0.00012171,2]
[347601320,1735941046708,-500.0,0.00012171,2]
[347601321,1735941046718,-500.0,0.00012171,2]
[347601322,1735941046728,-500.0,0.00012171,2]
[347601323,1735941046737,-334.41622497,0.00012171,2]
[347601324,1735941046747,-500.0,0.00012171,2]
[347601325,1735941046756,-185.96266168,0.00012171,2]
[347601326,1735941046765,-500.0,0.00012171,2]
[347601327,1735941046775,-500.0,0.00012171,2]
[347601328,1735941046785,-538.92,0.00012171,2]
[347601329,1735941046797,-500.0,0.00012171,2]
[347601330,1735941046807,-500.0,0.00012171,2]
[347601331,1735941046817,-500.0,0.00012171,2]
[347601332,1735941046827,-500.0,0.00012171,2]
[347601333,1735941046837,-500.0,0.00012171,2]
[347601334,1735941046849,-500.0,0.00012171,2]
[347601335,1735941046858,-500.0,0.00012171,2]
[347601336,1735941046867,-500.0,0.00012171,2]
[347601337,1735941046876,-500.0,0.00012171,2]
[347601338,1735941046887,-500.0,0.00012171,2]
[347601339,1735941046938,-500.0,0.00012171,2]
[347601340,1735941046947,-576.63,0.00012171,2]
[347601341,1735941046956,-500.0,0.00012171,2]